bitfinex-derivatives/quotes_SOLF0:USTF0_20240920
["timestamp","ask_amount","ask_price","bid_price","bid_amount"]
[1726822430503,15.9,150.96,150.88,132.52]
[1726822431001,3.3128,150.91,150.88,132.52]
[1726822432706,3.3131,150.9,150.88,132.52]
[1726822433000,3.3131,150.9,150.87,2.6536]
[1726822433801,3.3131,150.9,150.87,5.9672]
[1726822435404,3.3128,150.91,150.88,3.3133]
[1726822435603,15.9,150.96,150.87,2.6536]
[1726822436205,3.3129,150.9,150.87,5.967]
[1726822437901,3.3129,150.9,150.88,10.19]
[1726822438405,3.33807719,150.99,150.89,10.19]
[1726822438603,10.19,150.94,150.88,10.19]
[1726822438798,10.19,150.92,150.88,10.19]
[1726822439004,3.3128,150.91,150.88,13.5033]
[1726822439405,10.19,150.92,150.88,10.19]
[1726822439599,3.313,150.9,150.88,10.19]
[1726822440002,10.19,150.92,150.87,14.8853]
[1726822440299,3.3131,150.89,150.86,4.6271]
[1726822440506,10.19,150.9,150.82,1.297]
[1726822440804,3.3135,150.88,150.85,13.5039]
[1726822441006,10.19,150.91,150.86,10.19]
[1726822441202,10.19,150.91,150.82,2.6298]
[1726822441203,10.19,150.93,150.87,10.19]
[1726822441406,3.313,150.9,150.87,13.5034]
[1726822444111,3.313,150.9,150.89,10.19]
[1726822447710,3.3128,150.91,150.89,10.19]
[1726822449201,3.3125,150.92,150.89,13.5031]
[1726822449405,6.622,150.99,150.91,10.19]
[1726822449406,10.19,150.95,150.91,10.19]
[1726822449605,10.19,150.96,150.91,10.19]
[1726822450512,3.3121,150.94,150.93,10.19]
[1726822451913,1.3732,151.02,150.93,10.19]
[1726822452215,10.19,151.01,150.96,10.19]
[1726822453914,3.3113,150.98,150.96,10.19]
[1726822462229,10.19,151.01,150.88,3.9235]
[1726822462533,10.19,151.01,150.95,10.19]
[1726822462829,3.3113,150.98,150.97,10.19]
[1726822463434,3.311,150.99,150.97,10.19]
[1726822463629,10.19,151.01,150.97,10.19]
[1726822464330,3.3112,150.98,150.97,10.19]
[1726822467829,3.3111,150.99,150.97,10.19]
[1726822468030,10.19,151.02,150.97,10.19]
[1726822468230,0.99213936,151.01,150.97,10.19]
[1726822469638,3.3111,150.99,150.97,10.19]
[1726822470535,3.3112,150.98,150.97,10.19]
[1726822470933,10.19,151.0,150.88,136.4635]
[1726822471134,10.19,151.0,150.95,10.19]
[1726822471135,3.3114,150.97,150.95,10.19]
[1726822475237,2.5948,151.05,150.96,10.19]
[1726822475441,3.35563838,151.04,151.0,10.19]
[1726822476841,3.3105,151.01,151.0,10.19]
[1726822478943,3.3103,151.02,151.0,10.19]
[1726822481944,10.19,151.04,150.97,3.3113]
[1726822482144,10.19,151.02,150.97,10.19]
[1726822482739,3.311,150.99,150.97,10.19]
[1726822483440,10.19,151.02,150.97,10.19]
[1726822483637,10.19,151.01,150.96,12.8541]
[1726822483840,3.3112,150.98,150.96,12.8541]
[1726822486844,3.3112,150.98,150.96,10.19]
[1726822487542,10.19,150.97,150.91,2.6887]
[1726822487746,10.19,150.96,150.91,12.8787]
[1726822489744,3.3123,150.93,150.91,12.8787]
[1726822493649,3.3121,150.94,150.92,10.19]
[1726822495153,3.3121,150.94,150.91,2.6887]
[1726822495154,10.19,150.93,150.88,10.19]
[1726822495349,10.19,150.92,150.88,10.19]
[1726822495755,3.3131,150.9,150.88,10.19]
[1726822498456,3.3131,150.89,150.88,10.19]
[1726822498657,13.555916,150.93,150.88,10.19]
[1726822499452,3.313,150.9,150.86,3.3138]
[1726822499750,3.313,150.9,150.88,10.19]
[1726822502956,1.2662,150.99,150.89,10.19]
[1726822503158,10.19,150.95,150.9,10.19]
[1726822504459,3.3127,150.91,150.89,10.19]
[1726822504759,10.19,150.92,150.88,10.19]
[1726822505462,3.3128,150.91,150.88,13.5032]
[1726822506363,3.3128,150.91,150.89,3.3131]
[1726822506960,3.3128,150.91,150.89,13.5031]
[1726822507958,1.2662,150.99,150.9,10.19]
[1726822508152,10.19,150.97,150.92,10.19]
[1726822508358,10.19,150.97,150.88,2.6736]
[1726822508562,10.19,150.96,150.91,10.19]
[1726822509059,3.3123,150.93,150.91,13.5027]
[1726822509554,3.3123,150.93,150.91,10.19]
[1726822511961,3.3123,150.93,150.91,13.5027]
[1726822512162,3.3121,150.94,150.91,13.5027]
[1726822512765,3.3121,150.94,150.92,13.5024]
[1726822514167,3.3121,150.94,150.92,10.19]
[1726822514369,3.3122,150.93,150.91,13.5026]
[1726822515067,10.19,150.96,150.91,10.19]
[1726822515264,10.19,150.96,150.9,13.5028]
[1726822516363,10.19,150.96,150.9,3.3128]
[1726822516557,10.19,150.96,150.9,13.5028]
[1726822516963,3.3125,150.92,150.9,13.5028]
[1726822517359,3.3125,150.92,150.9,10.19]
[1726822517563,3.36182988,150.97,150.89,3.313]
[1726822517564,10.19,150.94,150.89,13.503]
[1726822518667,10.19,150.94,150.88,7.3143]
[1726822518870,10.19,150.94,150.89,10.19]
[1726822519171,3.3129,150.9,150.89,10.19]
[1726822519464,10.19,150.93,150.87,13.5035]
[1726822520568,3.313,150.9,150.88,10.19]
[1726822525764,3.313,150.9,150.87,3.3135]
[1726822525963,3.313,150.9,150.87,13.5035]
[1726822529861,10.19,150.92,150.87,13.5035]
[1726822530063,10.19,150.9,150.84,1.3052]
[1726822530267,4.0002,150.94,150.83,12.7355]
[1726822530472,3.3139,150.86,150.83,2.5455]
[1726822530663,3.3139,150.86,150.83,16.0498]
[1726822531173,3.3139,150.86,150.84,13.5042]
[1726822531766,3.3136,150.87,150.84,13.5042]
[1726822532172,3.3136,150.87,150.85,10.19]
[1726822532770,3.3138,150.86,150.84,13.5042]
[1726822533273,10.19,150.87,150.82,3.3145]
[1726822533470,10.19,150.86,150.81,10.19]
[1726822533874,3.3144,150.84,150.81,13.5048]
[1726822534270,3.3144,150.84,150.82,10.19]
[1726822535075,3.3144,150.84,150.82,13.5047]
[1726822535277,3.3141,150.85,150.82,13.5047]
[1726822535971,3.3138,150.86,150.84,10.19]
[1726822538378,10.19,150.87,150.8,1.3638]
[1726822538581,10.19,150.86,150.82,10.19]
[1726822538779,10.19,150.85,150.77,2.6013]
[1726822539074,3.3148,150.82,150.79,13.5052]
[1726822540283,3.3148,150.82,150.79,3.3152]
[1726822540585,3.3148,150.82,150.79,13.5052]
[1726822541988,3.3145,150.83,150.8,13.5049]
[1726822544593,3.3145,150.83,150.8,3.3149]
[1726822544791,3.3151,150.8,150.77,2.6013]
[1726822545095,3.3151,150.8,150.77,12.7913]
[1726822545292,3.315,150.81,150.78,3.3155]
[1726822545693,10.19,150.82,150.78,3.3155]
[1726822546094,3.315,150.81,150.78,3.3155]
[1726822546692,3.3147,150.82,150.79,3.3153]
[1726822546895,3.3147,150.82,150.79,13.5053]
[1726822549903,3.3149,150.81,150.79,13.5053]
[1726822550396,3.3148,150.82,150.79,13.5053]
[1726822550599,13.56212809,150.85,150.81,10.19]
[1726822550796,10.19,150.86,150.81,10.19]
[1726822551192,3.314,150.85,150.82,3.3145]
[1726822552291,3.24701246,150.93,150.82,10.19]
[1726822552498,3.24701246,150.93,150.77,2.6013]
[1726822552499,10.19,150.88,150.83,10.19]
[1726822553102,3.3138,150.86,150.83,13.5043]
[1726822554506,3.3138,150.86,150.84,3.3142]
[1726822557505,10.19,150.87,150.83,13.5043]
[1726822557706,10.19,150.87,150.82,10.19]
[1726822558008,3.3142,150.85,150.82,13.5046]
[1726822560010,3.3139,150.86,150.83,3.3144]
[1726822561214,3.3139,150.86,150.83,13.5044]
[1726822561411,3.3138,150.86,150.84,3.3141]
[1726822561914,4.0002,150.94,150.85,10.19]
[1726822562109,19.58327556,151.02,150.9,10.19]
[1726822562313,0.99206362,151.01,150.91,10.19]
[1726822562509,3.3118,150.95,150.92,13.5023]
[1726822562703,3.3118,150.95,150.92,10.19]
[1726822563518,10.19,150.97,150.92,10.19]
[1726822563714,4.0622,151.02,150.92,10.19]
[1726822563917,10.19,150.98,150.92,13.5024]
[1726822564418,10.19,150.96,150.92,10.19]
[1726822564613,3.3122,150.94,150.92,10.19]
[1726822565115,10.19,150.95,150.9,1.3176]
[1726822565314,4.0622,151.02,150.89,1.2932]
[1726822565315,10.19,150.94,150.89,1.2932]
[1726822565716,10.19,150.94,150.89,11.4832]
[1726822566119,10.19,150.95,150.9,10.19]
[1726822567815,3.3123,150.93,150.9,13.5029]
[1726822568119,10.19,150.95,150.9,13.5029]
[1726822568317,10.19,150.96,150.91,10.19]
[1726822569020,3.3122,150.94,150.91,10.19]
[1726822569215,10.19,150.96,150.91,10.19]
[1726822569614,3.3122,150.94,150.91,10.19]
[1726822570625,3.3122,150.94,150.91,13.5026]
[1726822576625,3.3122,150.94,150.91,3.3126]
[1726822576824,3.3122,150.94,150.91,13.5026]
[1726822578730,3.3118,150.95,150.92,13.5023]
[1726822579125,10.19,150.97,150.92,13.5023]
[1726822580324,10.19,150.97,150.92,10.19]
[1726822581130,3.3121,150.94,150.92,10.19]
[1726822584924,3.3121,150.94,150.92,13.5024]
[1726822586035,4.0622,151.02,150.93,13.5021]
[1726822586237,10.19,150.99,150.95,10.19]
[1726822586534,3.3115,150.97,150.95,10.19]
[1726822588031,3.3116,150.96,150.95,10.19]
[1726822588235,3.3116,150.96,150.94,3.3119]
[1726822593238,3.3116,150.96,150.94,13.5019]
[1726822598642,3.3116,150.96,150.94,10.19]
[1726822606847,10.19,150.96,150.89,1.2932]
[1726822607047,10.19,150.94,150.89,11.4832]
[1726822607245,3.3128,150.91,150.89,11.4832]
[1726822609048,6.6211,151.01,150.9,3.3129]
[1726822609245,0.99146506,151.0,150.91,10.19]
[1726822609441,10.19,150.97,150.92,10.19]
[1726822609652,3.3122,150.94,150.92,10.19]
[1726822610744,3.3127,150.91,150.89,1.2932]
[1726822610950,3.3127,150.91,150.89,11.4832]
[1726822611143,10.19,150.91,150.81,4.49799016]
[1726822611350,10.19,150.9,150.84,10.19]
[1726822612253,3.3135,150.88,150.84,3.314]
[1726822612452,3.3135,150.88,150.84,13.504]
[1726822613054,3.3135,150.88,150.84,3.314]
[1726822613254,3.3135,150.88,150.85,10.19]
[1726822613453,3.3135,150.88,150.85,3.314]
[1726822613753,3.3135,150.88,150.85,13.504]
[1726822616353,3.3135,150.88,150.86,10.19]
[1726822616551,2.7069,150.94,150.87,10.19]
[1726822616755,2.7069,150.94,150.89,10.19]
[1726822616756,3.35001624,150.94,150.89,10.19]
[1726822616950,10.19,150.94,150.89,10.19]
[1726822617150,13.54034776,150.94,150.89,10.19]
[1726822617351,3.3127,150.92,150.89,13.5031]
[1726822617557,13.54034776,150.94,150.89,10.19]
[1726822617758,10.19,150.93,150.89,10.19]
[1726822618754,3.3128,150.91,150.89,10.19]
[1726822620559,3.313,150.9,150.87,3.3135]
[1726822620756,3.313,150.9,150.87,13.5035]
[1726822623460,3.3127,150.91,150.88,13.5033]
[1726822623861,4.0292,151.0,150.9,10.19]
[1726822624063,0.99141249,150.99,150.91,10.19]
[1726822624264,10.19,150.94,150.83,4.51270778]
[1726822624462,10.19,150.92,150.88,10.19]
[1726822624662,3.3128,150.91,150.88,13.5033]
[1726822624862,3.24881324,150.95,150.88,10.19]
[1726822625066,4.0292,151.0,150.9,10.19]
[1726822625266,4.0292,151.0,150.9,13.5028]
[1726822625267,3.3124,150.93,150.9,13.5028]
[1726822630363,3.3125,150.92,150.9,10.19]
[1726822631263,10.19,150.94,150.83,4.5195866]
[1726822631464,10.19,150.94,150.88,10.19]
[1726822631665,13.51438245,150.94,150.88,10.19]
[1726822631865,10.19,150.94,150.88,10.19]
[1726822632069,10.19,150.94,150.88,13.5031]
[1726822633367,3.3126,150.92,150.89,3.3131]
[1726822633965,3.3126,150.92,150.89,13.5031]
[1726822634160,3.3126,150.92,150.9,3.3129]
[1726822636268,3.3126,150.92,150.89,13.503]
[1726822636970,1003.3126,150.92,150.89,13.503]
[1726822643770,1000.0,150.92,150.84,4.51954684]
[1726822643977,1000.0,150.92,150.9,10.19]
[1726822644472,1003.3125,150.92,150.9,10.19]
[1726822646274,1003.3125,150.92,150.89,13.503]
[1726822648570,3.3127,150.91,150.88,3.3133]
[1726822648769,3.3127,150.91,150.88,13.5033]
[1726822651277,1003.3125,150.92,150.89,3.3131]
[1726822651871,1003.3125,150.92,150.89,13.5031]
[1726822653475,1003.3125,150.92,150.89,10.19]
[1726822654079,1003.3125,150.92,150.89,13.503]
[1726822657077,1000.0,150.92,150.83,4.52024445]
[1726822657385,10.19,150.87,150.82,1.2812]
[1726822657674,10.19,150.84,150.76,2.6622]
[1726822657881,10.19,150.83,150.78,10.19]
[1726822658075,10.19,150.83,150.76,2.6622]
[1726822658271,3.3153,150.8,150.77,14.71191528]
[1726822658476,3.3153,150.8,150.77,10.19]
[1726822658871,3.3153,150.8,150.77,13.5057]
[1726822659278,3.3149,150.81,150.77,13.5057]
[1726822660483,3.3149,150.81,150.78,10.19]
[1726822660781,4.0246,150.91,150.79,10.19]
[1726822660982,10.19,150.85,150.79,10.19]
[1726822661183,3.27627796,150.84,150.79,10.19]
[1726822661382,3.3146,150.83,150.79,13.5052]
[1726822661879,10.19,150.85,150.82,10.19]
[1726822661880,3.3142,150.85,150.82,10.19]
[1726822662076,4.0246,150.91,150.76,2.6622]
[1726822662077,3.37413176,150.87,150.76,2.6622]
[1726822662278,10.19,150.86,150.81,10.19]
[1726822662481,13.53825855,150.86,150.81,10.19]
[1726822663482,3.3144,150.84,150.81,10.19]
[1726822664978,3.3141,150.85,150.82,10.19]
[1726822665785,3.3141,150.85,150.82,13.5046]
[1726822668987,3.3143,150.84,150.81,3.3149]
[1726822671380,1003.3143,150.84,150.81,3.3149]
[1726822681593,1003.3143,150.84,150.82,3.3146]
[1726822682891,1003.3143,150.84,150.81,3.3148]
[1726822684893,1000.0,150.84,150.83,3.3144]
[1726822685394,1000.0,150.84,150.8,10.19]
[1726822685892,1000.0,150.84,150.82,3.3145]
[1726822687989,1003.3143,150.84,150.81,3.3147]
[1726822688795,3.3145,150.83,150.8,3.315]
[1726822688991,10.19,150.82,150.76,2.6622]
[1726822689194,10.19,150.78,150.75,1.2732]
[1726822689398,3.316,150.76,150.71,3.38528539]
[1726822689694,10.19,150.78,150.73,13.5065]
[1726822690397,3.3159,150.77,150.74,3.3164]
[1726822690991,13.5056,150.78,150.75,3.3162]
[1726822691496,13.5056,150.78,150.74,13.5063]
[1726822692995,10.19,150.78,150.74,3.3163]
[1726822693299,10.19,150.78,150.74,13.5063]
[1726822693495,1.3802,150.83,150.75,10.19]
[1726822693689,1.3802,150.83,150.78,10.19]
[1726822693889,1000.0,150.84,150.78,10.19]
[1726822694090,10.19,150.83,150.78,10.19]
[1726822694500,3.3149,150.81,150.7,7.11441737]
[1726822694698,3.3149,150.81,150.77,10.19]
[1726822695199,13.5047,150.82,150.78,3.3153]
[1726822695591,3.3149,150.81,150.78,3.3153]
[1726822696592,1000.0,150.84,150.8,10.19]
[1726822697902,1000.0,150.84,150.79,2.7457]
[1726822698103,1000.0,150.84,150.8,10.19]
[1726822698801,3.3146,150.83,150.8,13.505]
[1726822699103,1000.0,150.84,150.8,13.505]
[1726822699303,1003.3144,150.84,150.81,3.3149]
[1726822700211,3.3145,150.83,150.8,13.5051]
[1726822700602,1000.0,150.84,150.8,10.19]
[1726822700806,1000.0,150.84,150.82,3.3145]
[1726822700999,1000.0,150.84,150.81,10.19]
[1726822701506,1003.3142,150.84,150.81,13.5047]
[1726822701805,1000.0,150.84,150.81,10.19]
[1726822702104,1000.0,150.84,150.79,2.7457]
[1726822702105,1000.0,150.84,150.83,10.19]
[1726822702309,997.9026,150.84,150.83,10.19]
[1726822702602,995.8052,150.84,150.83,10.19]
[1726822702808,900.3653,150.84,150.83,13.5044]
[1726822703007,894.0758,150.84,150.83,13.5044]
[1726822705924,807.0258,150.84,150.83,13.5044]
[1726822708323,719.9758,150.84,150.83,13.5044]
[1726822709420,719.9758,150.84,150.83,3.3144]
[1726822709628,719.9758,150.84,150.83,13.5044]
[1726822711323,632.9258,150.84,150.83,13.5044]
[1726822713727,613.5158,150.84,150.83,13.5044]
[1726822714317,545.8758,150.84,150.83,13.5044]
[1726822716827,526.4658,150.84,150.83,13.5044]
[1726822717528,458.8258,150.84,150.83,13.5044]
[1726822718928,439.4158,150.84,150.83,13.5044]
[1726822719225,432.6191,150.84,150.83,13.5044]
[1726822719427,401.4538,150.84,150.83,20.1333]
[1726822719625,396.0364,150.84,150.83,20.1333]
[1726822719825,371.2666,150.84,150.83,20.1333]
[1726822720027,366.4463,150.84,150.83,20.1333]
[1726822720421,298.8063,150.84,150.83,20.1333]
[1726822721831,279.3963,150.84,150.83,20.1333]
[1726822722232,262.3363,150.84,150.83,20.1333]
[1726822722932,242.9263,150.84,150.83,20.1333]
[1726822723328,192.3463,150.84,150.83,20.1333]
[1726822723524,192.3463,150.84,150.83,152.7133]
[1726822724534,172.9363,150.84,150.83,152.7133]
[1726822725328,155.8763,150.84,150.83,152.7133]
[1726822725832,136.4663,150.84,150.83,152.7133]
[1726822726427,85.8863,150.84,150.83,152.7133]
[1726822727533,66.4763,150.84,150.83,152.7133]
[1726822727729,66.4763,150.84,150.83,146.0844]
[1726822728134,49.4163,150.84,150.83,146.0844]
[1726822728437,10.19,151.02,150.83,142.77]
[1726822728630,1.3353,151.01,150.97,10.19]
[1726822728834,3.3107,151.0,150.98,10.19]
[1726822730437,4.6459,151.01,150.98,10.19]
[1726822730632,1.3353,151.01,150.98,10.19]
[1726822731140,3.3109,151.0,150.97,10.19]
[1726822732634,3.311,150.99,150.96,10.19]
[1726822733833,3.311,150.99,150.95,6.64602551]
[1726822734033,3.311,150.99,150.95,16.83602551]
[1726822736139,3.311,150.99,150.95,6.64602551]
[1726822736437,10.19,150.96,150.91,132.54]
[1726822736736,1.348,150.95,150.91,135.8526]
[1726822737133,2.7384,150.94,150.91,135.8526]
[1726822737438,2.7384,150.94,150.91,130.444]
[1726822738242,6.0505,150.94,150.91,130.444]
[1726822738439,10.19,150.93,150.91,124.156]
[1726822740039,6.0506,150.94,150.91,124.156]
[1726822740240,2.7384,150.94,150.91,134.346]
[1726822741733,2.7384,150.94,150.91,137.6586]
[1726822743142,2.7384,150.94,150.91,13.5026]
[1726822746849,2.7384,150.94,150.92,3.3125]
[1726822747450,2.7384,150.94,150.91,13.5026]
[1726822754457,2.7384,150.94,150.93,10.19]
[1726822754659,2.7384,150.94,150.91,13.5026]
[1726822756558,3.3112,150.98,150.93,10.19]
[1726822756761,3.3112,150.98,150.95,10.19]
[1726822757963,3.311,150.99,150.95,10.19]
[1726822758161,3.311,150.99,150.95,13.5017]
[1726822758358,10.19,151.0,150.95,13.5017]
[1726822758756,10.19,150.99,150.95,13.5017]
[1726822759766,3.3112,150.98,150.95,13.5017]
[1726822760861,3.311,150.99,150.96,10.19]
[1726822761360,10.19,151.01,150.96,13.5016]
[1726822761560,3.3108,151.0,150.96,13.5016]
[1726822762670,3.311,150.99,150.96,13.5016]
[1726822764068,3.311,150.99,150.96,10.19]
[1726822765560,10.19,150.97,150.9,132.54]
[1726822765763,9.98005421,151.04,150.9,132.54]
[1726822765764,10.19,150.94,150.9,132.54]
[1726822765970,10.19,150.92,150.9,132.54]
[1726822766169,13.5026,150.92,150.9,132.54]
[1726822766869,13.5026,150.92,150.87,6.56973613]
[1726822769967,13.5026,150.92,150.87,3.3134]
[1726822772372,13.5026,150.92,150.88,10.19]
[1726822772869,3.3126,150.92,150.88,10.19]
[1726822775372,3.3126,150.92,150.88,13.5033]
[1726822775572,3.3124,150.93,150.91,10.19]
[1726822775974,3.3124,150.93,150.87,3.29289737]
[1726822776172,3.3124,150.93,150.89,10.19]
[1726822776474,3.3125,150.92,150.89,13.54100725]
[1726822779277,3.3124,150.93,150.89,16.85410725]
[1726822781276,10.19,150.9,150.82,1.2948]
[1726822781573,10.19,150.88,150.82,11.4848]
[1726822781774,10.19,150.86,150.82,11.4848]
[1726822782979,13.5038,150.86,150.82,14.7994]
[1726822784682,14.02241079,150.96,150.85,10.19]
[1726822784883,10.19,150.9,150.85,10.19]
[1726822785082,3.3135,150.88,150.85,10.19]
[1726822786982,3.3135,150.88,150.83,3.3143]
[1726822787185,3.3135,150.88,150.85,10.19]
[1726822794187,10.19,150.9,150.82,1.2948]
[1726822794388,10.19,150.9,150.84,10.19]
[1726822795091,3.3135,150.88,150.84,10.19]
[1726822795691,3.3135,150.88,150.84,13.5041]
[1726822796192,3.3138,150.86,150.82,4.6094]
[1726822796392,3.3138,150.86,150.84,10.19]
[1726822796787,3.3136,150.87,150.84,10.19]
[1726822799288,3.3139,150.86,150.83,10.19]
[1726822799685,10.19,150.86,150.82,10.19]
[1726822800193,3.3142,150.84,150.82,10.19]
[1726822800491,3.3142,150.84,150.8,12.8251]
[1726822801392,3.3142,150.84,150.8,16.1401]
[1726822802894,3.3141,150.85,150.81,3.3149]
[1726822803095,3.3141,150.85,150.82,10.19]
[1726822803298,10.19,150.88,150.82,10.19]
[1726822803596,3.3137,150.87,150.83,10.19]
[1726822803998,10.19,150.88,150.83,10.19]
[1726822804193,10.19,150.88,150.82,3.3145]
[1726822804394,10.19,150.88,150.83,10.19]
[1726822804595,10.19,150.88,150.82,3.3145]
[1726822804795,3.3138,150.86,150.83,10.19]
[1726822805894,3.3141,150.85,150.81,3.3148]
[1726822806096,10.19,150.88,150.83,10.19]
[1726822806596,3.314,150.86,150.83,13.5044]
[1726822807795,3.314,150.86,150.83,10.19]
[1726822808800,6.6243,150.94,150.8,2.6351]
[1726822809001,6.6243,150.94,150.86,10.19]
[1726822809196,10.19,150.9,150.86,10.19]
[1726822809404,6.6243,150.94,150.86,10.19]
[1726822809405,3.3132,150.89,150.86,10.19]
[1726822809907,10.19,150.9,150.86,10.19]
[1726822810699,7.39911079,150.96,150.86,13.5038]
[1726822810700,3.3132,150.89,150.86,13.5038]
[1726822811600,3.3132,150.89,150.85,13.5039]
[1726822811798,3.3132,150.89,150.85,10.19]
[1726822811999,3.3132,150.89,150.85,13.504]
[1726822812502,3.3132,150.89,150.85,10.19]
[1726822812801,7.39911079,150.96,150.86,13.5038]
[1726822812802,3.313,150.9,150.86,13.5038]
[1726822813196,3.3127,150.91,150.87,13.5034]
[1726822813390,3.3127,150.91,150.89,10.19]
[1726822813595,3.3127,150.91,150.8,2.6351]
[1726822813904,3.3125,150.92,150.88,10.19]
[1726822814292,3.3125,150.92,150.89,10.19]
[1726822815299,3.3123,150.93,150.89,13.5031]
[1726822815701,4.0797,150.96,150.91,10.19]
[1726822815905,3.312,150.95,150.92,10.19]
[1726822816297,4.0797,150.96,150.92,10.19]
[1726822816506,3.3119,150.95,150.92,10.19]
[1726822817495,3.3122,150.94,150.92,10.19]
[1726822818003,3.3122,150.94,150.9,16.85723507]
[1726822821305,3.3122,150.93,150.9,13.54443507]
[1726822822608,3.3121,150.94,150.9,13.54443507]
[1726822823007,3.3121,150.94,150.91,10.19]
[1726822823605,3.3119,150.95,150.91,10.19]
[1726822823810,10.19,150.97,150.93,10.19]
[1726822824009,3.3114,150.97,150.93,10.19]
[1726822824208,3.3114,150.97,150.94,10.19]
[1726822826009,10.19,150.96,150.9,3.3128]
[1726822826213,10.19,150.96,150.91,10.19]
[1726822826615,10.19,150.96,150.91,13.46136369]
[1726822827114,3.3119,150.95,150.91,16.77396369]
[1726822827815,3.3119,150.95,150.92,10.19]
[1726822828010,10.19,150.97,150.92,13.5024]
[1726822828011,3.3117,150.96,150.92,13.5024]
[1726822828207,10.19,150.97,150.92,13.5024]
[1726822828415,10.19,150.97,150.92,10.19]
[1726822828813,3.312,150.95,150.92,10.19]
[1726822829010,10.19,150.97,150.91,3.27136369]
[1726822829213,10.19,150.97,150.91,10.19]
[1726822829413,10.19,150.96,150.91,13.57204394]
[1726822830709,3.3119,150.95,150.91,6.69474394]
[1726822832219,3.3117,150.96,150.92,3.3124]
[1726822833117,3.3114,150.97,150.93,3.3122]
[1726822836722,3.3116,150.96,150.93,3.3122]
[1726822837320,3.3116,150.96,150.92,3.3124]
[1726822837524,3.3114,150.97,150.86,133.883]
[1726822837915,3.3114,150.97,150.87,132.54]
[1726822838119,3.3114,150.97,150.87,135.78795844]
[1726822839121,3.3114,150.97,150.92,3.3123]
[1726822845620,3.9465,151.02,150.91,3.3126]
[1726822846227,3.3117,150.96,150.92,3.3125]
[1726822848822,1.3885,151.01,150.88,132.54]
[1726822849625,3.311,150.99,150.95,3.3117]
[1726822849826,3.311,150.99,150.96,3.28639851]
[1726822851827,3.3108,151.0,150.96,3.28639851]
[1726822852235,3.3108,151.0,150.96,6.59789851]
[1726822852434,3.3108,151.0,150.96,3.3115]
[1726822853033,3.3108,151.0,150.96,6.6938655]
[1726822853632,3.311,150.99,150.96,3.3823655]
[1726822853837,3.311,150.99,150.95,3.3118]
[1726822854338,3.311,150.99,150.96,3.31113339]
[1726822857344,3.3108,151.0,150.96,3.31113339]
[1726822858542,3.3106,151.01,150.97,3.3114]
[1726822858742,1.3138,151.02,150.97,6.63137011]
[1726822859849,3.3105,151.01,150.97,6.63137011]
[1726822860342,3.3108,151.0,150.97,3.31997011]
[1726822860546,3.3108,151.0,150.96,3.3116]
[1726822861047,3.3108,151.0,150.97,3.24820095]